bitfinex-derivatives/quotes_SOLF0:USTF0_20250425
["timestamp","ask_amount","ask_price","bid_price","bid_amount"]
[1745577409881,6.5157,153.43,153.39,6.5169]
[1745577410681,6.5157,153.43,153.38,6.5174]
[1745577411388,8.01432546,153.45,153.35,8.01432546]
[1745577411683,1.9864,153.44,153.35,8.01432546]
[1745577412279,6.5167,153.41,153.36,6.5183]
[1745577412579,6.5167,153.41,153.34,27.4]
[1745577412778,8.01432546,153.43,153.34,27.4]
[1745577412981,28.7,153.42,153.34,27.4]
[1745577414075,6.5171,153.4,153.36,6.5182]
[1745577414279,8.01432546,153.41,153.31,8.01432546]
[1745577414684,6.5179,153.38,153.34,6.5191]
[1745577415087,6.5185,153.36,153.32,6.5199]
[1745577415390,28.7,153.38,153.3,30.5738]
[1745577415683,6.5193,153.35,153.31,6.5204]
[1745577415982,8.01432546,153.37,153.3,28.7]
[1745577416183,9.92212546,153.37,153.27,8.01432546]
[1745577416681,1.9078,153.37,153.29,8.01432546]
[1745577416890,8.01432546,153.32,153.13,355.0]
[1745577417081,8.01432546,153.3,153.21,8.01432546]
[1745577417278,28.7,153.31,153.23,8.01432546]
[1745577417991,35.2206,153.31,153.23,8.01432546]
[1745577418287,28.7,153.31,153.23,8.01432546]
[1745577418489,35.2206,153.31,153.23,8.01432546]
[1745577418989,35.2206,153.31,153.27,6.5221]
[1745577419288,35.2206,153.31,153.23,8.01432546]
[1745577419482,6.5211,153.3,153.22,3.8003]
[1745577419684,28.7,153.31,153.22,3.8003]
[1745577419987,28.7,153.31,153.23,8.01432546]
[1745577420187,28.7,153.31,153.27,6.522]
[1745577420390,28.7,153.36,153.28,8.01432546]
[1745577420688,28.7,153.36,153.33,6.5194]
[1745577420989,28.7,153.36,153.3,8.01432546]
[1745577421185,28.7,153.36,153.33,6.5195]
[1745577421489,28.7,153.36,153.29,1.9877]
[1745577421688,35.2185,153.36,153.32,6.5199]
[1745577421888,35.2185,153.36,153.29,1.9877]
[1745577422191,36.71432546,153.36,153.26,8.01432546]
[1745577422387,36.71432546,153.36,153.25,28.7]
[1745577422388,8.01432546,153.34,153.25,28.7]
[1745577422586,8.01432546,153.32,153.23,1.9877]
[1745577422784,28.7,153.31,153.27,6.5219]
[1745577422985,28.7,153.31,153.23,1.9877]
[1745577423184,8.01432546,153.3,153.23,1.9877]
[1745577423390,6.5225,153.27,153.23,6.5239]
[1745577423590,30.6075,153.3,153.22,8.01432546]
[1745577423784,30.6075,153.3,153.28,6.5218]
[1745577423990,30.6075,153.3,153.22,8.01432546]
[1745577424292,28.72,153.3,153.22,8.01432546]
[1745577424493,28.72,153.3,153.22,9.92262546]
[1745577425693,1.8875,153.34,153.24,8.01432546]
[1745577425890,28.72,153.33,153.25,2.0217]
[1745577426091,35.24,153.33,153.29,6.5214]
[1745577426289,36.73432546,153.33,153.25,2.0217]
[1745577426491,36.73432546,153.33,153.22,9.92262546]
[1745577426691,6.5213,153.3,153.22,11.94432546]
[1745577426892,36.73432546,153.33,153.22,11.94432546]
[1745577427189,8.01432546,153.31,153.22,11.94432546]
[1745577427394,8.01432546,153.29,153.22,2.0217]
[1745577427693,8.01432546,153.27,153.18,8.01432546]
[1745577428195,14.53692546,153.27,153.22,6.5241]
[1745577428394,8.01432546,153.27,153.18,8.01432546]
[1745577428591,8.01432546,153.27,153.17,32.7631]
[1745577428793,6.523,153.26,153.22,6.524]
[1745577428992,8.01432546,153.27,153.19,10.01352546]
[1745577429394,14.53682546,153.27,153.23,6.5238]
[1745577429690,8.01432546,153.25,153.19,1.9992]
[1745577429890,8.01432546,153.23,153.13,28.72]
[1745577430090,28.72,153.22,153.13,28.72]
[1745577430395,6.5249,153.21,153.13,28.72]
[1745577430594,28.72,153.22,153.13,28.72]
[1745577431289,8.01432546,153.21,153.11,3.8463]
[1745577431487,8.01432546,153.21,153.14,6.5276]
[1745577432089,8.01432546,153.21,153.13,6.5281]
[1745577432286,8.01432546,153.21,153.11,11.86062546]
[1745577432597,6.5254,153.2,153.14,6.5275]
[1745577432797,8.01432546,153.21,153.14,6.5275]
[1745577432996,8.01432546,153.21,153.11,11.86062546]
[1745577434193,8.01432546,153.21,153.13,8.01432546]
[1745577434394,28.72,153.23,153.15,8.01432546]
[1745577434891,8.01432546,153.27,153.19,8.01432546]
[1745577435097,36.73432546,153.27,153.19,8.01432546]
[1745577435396,6.5228,153.26,153.13,28.72]
[1745577435597,6.5228,153.26,153.17,8.01432546]
[1745577435792,36.73432546,153.27,153.17,8.01432546]
[1745577435997,36.73432546,153.27,153.23,6.5238]
[1745577436197,36.73432546,153.27,153.17,36.73432546]
[1745577436495,6.5228,153.26,153.22,6.5243]
[1745577436698,36.73432546,153.27,153.17,36.73432546]
[1745577437194,43.25702546,153.27,153.22,6.5241]
[1745577437396,3.8318,153.31,153.2,12.88078817]
[1745577437593,32.1518,153.31,153.21,28.32]
[1745577437789,32.1518,153.31,153.21,30.1992]
[1745577438194,12.88078817,153.23,152.86,189.97415164]
[1745577438501,12.88078817,153.09,152.95,12.88078817]
[1745577438693,28.32,153.1,152.96,33.31652406]
[1745577438893,41.20078817,153.12,153.03,6.5322]
[1745577439096,41.20078817,153.12,152.98,12.88078817]
[1745577439297,41.20078817,153.12,152.99,1.19962615]
[1745577439598,41.20078817,153.12,153.0,28.32]
[1745577439987,41.20078817,153.12,153.03,6.5322]
[1745577440388,28.32,153.14,153.02,41.20078817]
[1745577440593,41.20078817,153.15,153.03,2.0199]
[1745577440789,1.981,153.14,153.04,8.0]
[1745577441595,6.5265,153.18,153.05,12.88078817]
[1745577441800,6.5265,153.18,153.08,12.88078817]
[1745577441999,1.9742,153.19,153.06,28.34]
[1745577442201,6.5263,153.18,153.1,6.5295]
[1745577442404,1.9742,153.19,153.1,28.34]
[1745577443398,12.88078817,153.18,153.1,28.34]
[1745577443599,12.88078817,153.18,153.05,3.6978]
[1745577443600,28.34,153.17,153.05,3.6978]
[1745577443904,19.40848817,153.15,153.08,6.53]
[1745577444102,12.88078817,153.15,153.07,28.34]
[1745577444298,19.40818817,153.15,153.08,6.5301]
[1745577444503,12.88078817,153.15,153.07,28.34]
[1745577444903,6.5286,153.13,153.07,34.8708]
[1745577445403,12.88078817,153.15,153.07,28.34]
[1745577445805,6.5281,153.14,153.08,6.5301]
[1745577446306,6.5285,153.13,153.07,34.8705]
[1745577446506,12.88078817,153.15,153.07,34.8705]
[1745577446803,12.88078817,153.15,153.07,6.5305]
[1745577447004,28.34,153.17,153.05,1.8579]
[1745577447407,28.34,153.17,153.09,6.5298]
[1745577447605,41.22078817,153.17,153.09,6.5298]
[1745577447904,41.22078817,153.17,153.05,1.8579]
[1745577448298,12.88078817,153.14,153.05,1.8579]
[1745577448500,6.5289,153.12,153.07,6.5306]
[1745577449806,28.34,153.13,153.04,28.34]
[1745577450008,1.8535,153.11,153.04,28.34]
[1745577450402,6.5298,153.1,153.04,28.34]
[1745577450603,6.5298,153.1,153.06,6.5312]
[1745577450805,1.8535,153.11,153.04,28.34]
[1745577451207,28.34,153.13,153.04,28.34]
[1745577452500,28.36,153.16,153.06,12.88078817]
[1745577452708,6.5277,153.15,153.11,6.5289]
[1745577452902,28.36,153.16,153.08,28.36]
[1745577453305,28.36,153.16,153.08,41.24078817]
[1745577453604,28.36,153.2,153.08,41.24078817]
[1745577453803,471.5602,153.22,153.11,12.88078817]
[1745577454006,1.9202,153.22,153.12,28.36]
[1745577454203,1.9202,153.22,153.16,6.5266]
[1745577454405,1.9202,153.22,153.12,28.36]
[1745577454604,12.88078817,153.2,153.09,30.3772]
[1745577454905,28.36,153.19,153.09,30.3772]
[1745577455104,12.88078817,153.17,153.07,3.9622]
[1745577455405,6.5281,153.14,153.09,6.5296]
[1745577455803,6.5281,153.14,153.1,6.5295]
[1745577456003,12.88078817,153.17,153.1,6.5295]
[1745577456307,12.88078817,153.17,153.09,6.5299]
[1745577456504,6.5281,153.14,153.07,3.9622]
[1745577456901,12.88078817,153.17,153.09,6.5296]
[1745577457203,6.5275,153.15,153.07,3.9622]
[1745577457401,12.88078817,153.17,153.09,6.5299]
[1745577457605,12.88078817,153.14,153.02,498.0]
[1745577457906,12.88078817,153.17,153.04,12.88078817]
[1745577458107,28.36,153.16,153.04,12.88078817]
[1745577458407,28.36,153.16,153.06,12.88078817]
[1745577458604,28.36,153.16,153.07,28.36]
[1745577458905,6.528,153.14,153.1,6.5294]
[1745577459105,28.36,153.16,153.07,28.36]
[1745577459301,6.5286,153.13,153.09,6.5295]
[1745577459500,1.9292,153.15,153.07,28.36]
[1745577459907,6.5284,153.13,153.09,6.5298]
[1745577460903,6.5288,153.12,153.09,6.5298]
[1745577461108,6.5288,153.12,153.07,28.36]
[1745577461508,6.5288,153.12,153.08,6.5302]
[1745577461709,6.5294,153.11,153.07,28.36]
[1745577461907,1.9292,153.15,153.04,28.36]
[1745577462102,12.88078817,153.14,153.06,6.5308]
[1745577462308,12.88078817,153.14,153.04,28.36]
[1745577462508,12.88078817,153.14,153.06,6.5309]
[1745577462707,6.5294,153.11,153.04,28.36]
[1745577462908,12.88078817,153.14,153.04,28.36]
[1745577464412,12.88078817,153.14,153.06,6.5309]
[1745577464813,12.88078817,153.14,153.04,28.36]
[1745577465109,6.5306,153.08,153.05,6.5316]
[1745577465411,12.88078817,153.14,152.88,12.88078817]
[1745577465412,28.36,153.09,152.97,12.88078817]
[1745577465603,28.36,153.09,152.98,31.59016909]
[1745577465804,28.36,153.09,153.0,12.88078817]
[1745577466003,28.36,153.12,153.0,12.88078817]
[1745577466514,28.36,153.13,153.0,12.88078817]
[1745577466715,6.5307,153.08,153.04,6.5318]
[1745577466919,28.36,153.13,153.0,41.24078817]
[1745577467115,12.88078817,153.11,153.0,28.36]
[1745577467919,12.88078817,153.08,153.0,28.36]
[1745577468114,1.9803,153.07,153.0,28.36]
[1745577468317,6.5328,153.03,153.0,28.36]
[1745577468616,6.5328,153.03,152.98,3.9181]
[1745577468813,1.9803,153.07,152.98,3.9181]
[1745577470021,6.5326,153.03,152.99,6.534]
[1745577470717,40.52078817,153.08,152.98,3.9181]
[1745577471018,40.52078817,153.11,153.0,12.88078817]
[1745577471321,6.5304,153.08,153.03,6.5323]
[1745577472019,6.5304,153.08,153.04,6.532]
[1745577473024,6.5311,153.07,153.04,6.532]
[1745577473225,6.5311,153.07,153.01,27.64]
[1745577473815,6.5311,153.07,153.04,6.5321]
[1745577474624,6.5306,153.08,153.04,6.5321]
[1745577474923,1.9039,153.1,153.01,27.64]
[1745577475123,6.53,153.09,153.01,27.64]
[1745577475425,6.53,153.09,153.05,6.5314]
[1745577475825,6.5304,153.08,153.05,6.5314]
[1745577476024,27.64,153.11,153.06,6.5311]
[1745577476226,27.64,153.11,153.01,27.64]
[1745577476426,6.5303,153.09,153.01,27.64]
[1745577476824,6.5304,153.08,153.01,27.64]
[1745577477023,6.5304,153.08,153.05,6.5314]
[1745577477224,27.64,153.11,153.05,6.5314]
[1745577477524,6.5302,153.09,153.05,6.5314]
[1745577477824,6.5302,153.09,153.06,6.5312]
[1745577478223,27.64,153.11,153.05,6.5316]
[1745577478629,27.64,153.11,153.01,27.64]
[1745577479119,5.8684,153.16,153.03,12.88078817]
[1745577479325,6.5295,153.11,153.04,2.0041]
[1745577479520,27.64,153.15,153.05,31.4919]
[1745577479824,27.64,153.15,153.08,6.5301]
[1745577480318,27.64,153.15,153.08,6.53]
[1745577480319,6.5289,153.12,153.08,6.53]
[1745577480627,27.64,153.15,153.08,6.53]
[1745577480821,6.5298,153.1,153.07,6.5305]
[1745577481227,12.88078817,153.14,153.05,31.4919]
[1745577481528,12.88078817,153.11,153.01,27.64]
[1745577481829,27.64,153.1,153.01,27.64]
[1745577482026,6.5311,153.07,153.04,6.5319]
[1745577482327,27.64,153.1,153.01,27.64]
[1745577482626,27.64,153.1,153.03,6.5325]
[1745577482830,27.64,153.1,153.01,27.64]
[1745577483028,12.88078817,153.08,153.01,27.64]
[1745577483229,12.88078817,153.08,153.02,6.5329]
[1745577483626,6.5316,153.06,152.98,33.4654]
[1745577484021,1.8528,153.09,152.98,33.4654]
[1745577484226,6.531,153.07,153.04,6.5318]
[1745577484729,6.5306,153.08,152.98,33.4654]
[1745577484930,6.5306,153.08,153.0,12.88078817]
[1745577485524,27.64,153.1,153.0,12.88078817]
[1745577486023,34.1698,153.1,153.06,6.5311]
[1745577486229,27.64,153.1,153.03,27.64]
[1745577486729,1.9296,153.13,153.03,27.64]
[1745577486925,27.64,153.15,153.03,40.52078817]
[1745577487122,27.64,153.15,153.06,12.88078817]
[1745577487319,29.5451,153.18,153.07,31.6984]
[1745577487519,27.64,153.18,153.07,33.6859]
[1745577488130,27.64,153.18,153.13,6.528]
[1745577488329,27.64,153.18,153.07,33.6859]
[1745577488725,6.5268,153.17,153.13,6.5279]
[1745577489227,34.1663,153.18,153.14,6.5276]
[1745577490229,6.5266,153.17,153.13,6.528]
[1745577490426,27.64,153.18,153.13,6.528]
[1745577490622,27.64,153.18,153.07,33.6859]
[1745577490826,6.5267,153.17,153.07,33.6859]
[1745577491123,27.64,153.18,153.07,33.6859]
[1745577491330,6.5269,153.17,153.13,6.528]
[1745577491532,27.64,153.18,153.07,33.6859]
[1745577491830,6.5279,153.14,153.1,6.5294]
[1745577492026,27.64,153.21,153.08,12.88078817]
[1745577492426,12.88078817,153.2,153.08,12.88078817]
[1745577492823,27.64,153.21,153.11,12.88078817]
[1745577493022,27.64,153.21,153.12,27.64]
[1745577494235,34.1653,153.21,153.15,6.5271]
[1745577494725,6.5259,153.19,153.14,6.5278]
[1745577494926,27.64,153.21,153.14,6.5278]
[1745577495325,6.526,153.19,153.14,6.5278]
[1745577495531,27.64,153.21,153.14,6.5278]
[1745577495934,6.526,153.19,153.15,6.5274]
[1745577496330,27.64,153.21,153.09,27.64]
[1745577496636,12.88078817,153.17,153.09,27.64]
[1745577496837,27.64,153.16,153.09,27.64]
[1745577497134,34.1672,153.16,153.12,6.5284]
[1745577497728,34.1672,153.16,153.13,6.5282]
[1745577497935,27.64,153.16,153.09,27.64]
[1745577498733,6.5264,153.18,153.09,27.64]
[1745577498935,6.5264,153.18,153.15,6.5274]
[1745577499926,6.5264,153.18,153.14,6.5278]
[1745577500331,26.78,153.19,153.09,27.64]
[1745577500533,26.78,153.19,153.16,6.5267]
[1745577500828,33.3058,153.19,153.16,6.5267]
[1745577501033,26.78,153.19,153.16,6.5267]
[1745577501430,26.78,153.19,153.17,6.5265]
[1745577501735,28.798,153.22,153.13,26.78]
[1745577501935,28.798,153.22,153.14,3.976]
[1745577502132,6.5251,153.21,153.14,3.976]
[1745577502734,26.78,153.22,153.14,16.85678817]
[1745577502926,26.78,153.22,153.14,18.85488817]
[1745577503734,33.3046,153.22,153.14,18.85488817]
[1745577503935,26.78,153.22,153.14,18.85488817]
[1745577504634,26.78,153.22,153.19,6.5255]
[1745577505035,33.3046,153.22,153.18,6.526]
[1745577505432,26.78,153.22,153.14,18.85488817]
[1745577506235,33.3045,153.22,153.18,6.5259]
[1745577506535,26.78,153.22,153.18,6.5259]
[1745577507035,26.78,153.22,153.14,18.85488817]
[1745577507834,33.3047,153.22,153.18,6.5261]
[1745577508238,26.78,153.22,153.14,18.85488817]
[1745577508532,26.78,153.22,153.14,5.9741]
[1745577509333,6.5254,153.2,153.16,6.5268]
[1745577509535,26.78,153.22,153.16,6.5268]
[1745577510138,6.5255,153.2,153.17,6.5265]
[1745577510336,26.78,153.22,153.14,5.9741]
[1745577510737,6.5259,153.19,153.16,6.5267]
[1745577511031,26.78,153.22,153.14,5.9741]
[1745577511435,26.78,153.22,153.14,3.976]
[1745577511931,6.5259,153.19,153.14,3.976]
[1745577512131,26.78,153.22,153.14,16.85678817]
[1745577513238,0.48683,153.23,153.14,16.85678817]
[1745577513438,0.48683,153.23,153.15,1.9557]
[1745577513635,0.48683,153.23,153.22,6.5244]
[1745577515136,26.78,153.27,153.22,6.5244]
[1745577515341,33.3026,153.27,153.17,39.66078817]
[1745577515540,26.78,153.27,153.17,39.66078817]
[1745577515843,33.3023,153.27,153.17,39.66078817]
[1745577516244,26.78,153.27,153.17,39.66078817]
[1745577516442,6.5232,153.25,153.22,6.5242]
[1745577516742,26.78,153.27,153.17,39.66078817]
[1745577516937,6.5229,153.26,153.22,6.524]
[1745577517133,6.5229,153.26,153.17,39.66078817]
[1745577517443,33.3025,153.27,153.23,6.5238]
[1745577517739,26.78,153.27,153.17,39.66078817]
[1745577517946,6.523,153.26,153.23,6.5238]
[1745577518246,27.22393,153.27,153.23,6.5238]
[1745577518446,33.74643,153.27,153.23,6.5238]
[1745577519851,33.74643,153.27,153.17,39.66078817]
[1745577520255,27.22393,153.27,153.17,39.66078817]
[1745577520448,27.22393,153.27,153.22,6.5242]
[1745577520753,27.22393,153.27,153.17,39.66078817]
[1745577520953,0.44393,153.27,153.24,6.5233]
[1745577521351,0.44393,153.27,153.15,1.9557]
[1745577521552,0.44393,153.27,153.18,26.76]
[1745577521852,6.5238,153.24,153.2,6.5249]
[1745577522453,6.5238,153.24,153.21,6.5248]
[1745577523150,0.44393,153.27,153.18,26.76]
[1745577523356,8.04812397,153.22,153.15,28.7157]
[1745577524253,8.04812397,153.24,153.15,28.7157]
[1745577524852,6.5249,153.21,153.17,6.5263]
[1745577525053,8.04812397,153.24,153.17,6.5263]
[1745577525248,1.9417,153.25,153.15,6.5273]
[1745577525249,6.5264,153.18,153.15,6.5273]
[1745577525553,6.5264,153.18,153.14,1.9931]
[1745577525754,6.5264,153.18,153.12,26.76]
[1745577526057,26.76,153.21,153.12,26.76]
[1745577526355,12.89193933,153.2,153.1,1.8604]
[1745577526553,14.91433933,153.2,153.1,1.8604]
[1745577527754,12.89193933,153.17,153.1,6.5294]
[1745577527952,28.7253,153.16,153.1,6.5294]
[1745577528153,6.5283,153.13,153.1,6.5294]
[1745577528348,28.7253,153.16,153.06,26.76]
[1745577528657,6.5294,153.11,153.05,3.8488]
[1745577528858,26.14,153.12,153.05,3.8488]
[1745577529260,26.14,153.12,153.05,2.0117]
[1745577529459,26.14,153.12,153.07,6.5308]
[1745577530457,32.669,153.12,153.07,6.5308]
[1745577531263,26.14,153.15,153.06,12.89193933]
[1745577532562,6.5279,153.14,153.09,6.5298]
[1745577533565,6.5279,153.14,153.1,6.5295]
[1745577534358,6.5279,153.14,153.11,6.529]
[1745577534963,26.14,153.15,153.11,6.529]
[1745577535166,32.6675,153.15,153.11,6.529]
[1745577535364,26.14,153.15,153.11,6.529]
[1745577535862,6.5281,153.14,153.11,6.529]
[1745577536061,26.14,153.15,153.11,6.529]
[1745577536261,26.14,153.15,153.1,6.5293]
[1745577536566,26.14,153.15,153.06,12.89193933]
[1745577536769,26.14,153.15,153.1,6.5293]
[1745577537768,6.5285,153.13,153.1,6.5293]
[1745577537964,26.14,153.15,153.1,6.5293]
[1745577538264,6.5283,153.13,153.06,12.89193933]
[1745577538763,26.14,153.15,153.09,6.5297]
[1745577538969,6.5288,153.12,153.09,6.5297]
[1745577539172,26.14,153.15,153.05,2.0117]
[1745577539467,6.5288,153.12,153.05,2.0117]
[1745577539766,26.14,153.15,153.05,2.0117]
[1745577540270,6.5285,153.13,153.09,6.5296]
[1745577540569,6.5285,153.13,153.05,2.0117]
[1745577540768,26.14,153.15,153.05,2.0117]
[1745577541070,6.5282,153.14,153.1,6.5293]
[1745577541871,6.5283,153.13,153.1,6.5293]
[1745577542369,26.14,153.15,153.08,6.5304]
[1745577542571,26.14,153.15,153.05,2.0117]
[1745577542771,26.14,153.15,153.09,6.5296]
[1745577542968,26.14,153.15,153.05,2.0117]
[1745577543271,26.14,153.15,153.08,6.5301]
[1745577543572,28.0086,153.15,153.05,2.0117]
[1745577543772,12.89193933,153.14,153.05,2.0117]
[1745577544074,6.5297,153.1,153.06,6.5309]
[1745577544268,26.14,153.11,153.03,26.14]
[1745577544474,1.9653,153.16,153.06,12.89193933]
[1745577544675,6.528,153.14,153.07,1.8671]
[1745577544869,26.14,153.18,153.07,28.0071]
[1745577545073,14.81293933,153.2,153.13,6.5283]
[1745577545374,6.527,153.17,153.09,12.89193933]
[1745577545576,6.527,153.17,153.13,6.5282]
[1745577545876,6.527,153.17,153.09,12.89193933]
[1745577546070,26.14,153.19,153.14,6.5276]
[1745577546270,26.14,153.19,153.09,12.89193933]
[1745577546470,6.527,153.16,153.09,12.89193933]
[1745577546774,26.14,153.19,153.13,6.528]
[1745577546976,6.5267,153.17,153.13,6.528]
[1745577547574,6.5266,153.17,153.14,6.5277]
[1745577549778,6.5263,153.18,153.15,6.5273]
[1745577550176,26.14,153.19,153.09,12.89193933]
[1745577550472,6.5268,153.17,153.09,12.89193933]
[1745577550776,26.14,153.19,153.09,12.89193933]
[1745577550978,6.5263,153.18,153.15,6.5274]
[1745577551977,6.5266,153.17,153.15,6.5274]
[1745577552278,6.5266,153.17,153.14,6.5278]
[1745577553175,6.5266,153.17,153.15,6.5273]
[1745577553378,6.5266,153.17,153.11,8.05880427]
[1745577554080,6.5263,153.18,153.11,8.05880427]
[1745577554282,6.5263,153.18,153.15,6.5273]
[1745577554581,6.5266,153.17,153.11,8.05880427]
[1745577555075,6.5266,153.17,153.14,6.5275]
[1745577555281,6.5263,153.18,153.11,34.19880427]
[1745577555477,26.14,153.19,153.11,34.19880427]
[1745577555970,26.14,153.19,153.13,8.05880427]
[1745577555971,6.5263,153.18,153.13,8.05880427]
[1745577556175,26.14,153.19,153.12,1.926]
[1745577556375,34.19880427,153.19,153.08,34.19880427]
[1745577556579,8.05880427,153.17,153.08,34.19880427]
[1745577556781,34.19880427,153.19,153.12,6.5284]
[1745577557181,6.5274,153.16,153.12,6.5284]
[1745577557383,6.5274,153.16,153.13,6.5282]
[1745577558283,6.5275,153.15,153.12,6.5285]
[1745577558479,34.19880427,153.19,153.1,8.05880427]
[1745577558688,8.05880427,153.17,153.08,34.19880427]
[1745577558880,1.9448,153.16,153.08,34.19880427]
[1745577559078,1.9448,153.16,153.09,6.5298]
[1745577559282,1.9448,153.16,153.07,1.8671]
[1745577559283,33.97880427,153.15,153.06,1.926]
[1745577559682,6.5306,153.08,153.05,6.5314]
[1745577559882,8.05880427,153.13,153.03,1.8699]
[1745577560085,8.05880427,153.13,153.03,9.92870427]
[1745577560482,8.05880427,153.13,153.06,6.531]
[1745577560786,8.05880427,153.13,153.03,9.92870427]
[1745577560981,6.5299,153.1,153.03,9.92870427]
[1745577561285,8.05880427,153.13,153.03,9.92870427]
[1745577561488,6.5294,153.11,153.08,6.5301]
[1745577561677,8.05880427,153.13,153.08,6.5301]
[1745577561987,6.5294,153.11,153.08,6.5301]
[1745577562387,8.05880427,153.13,153.08,6.5301]
[1745577562882,33.97880427,153.15,153.08,6.5301]
[1745577563090,33.97880427,153.15,153.07,6.5306]
[1745577563291,33.97880427,153.15,153.05,8.05880427]
[1745577563790,6.5291,153.11,153.05,8.05880427]
[1745577563984,33.97880427,153.15,153.05,8.05880427]
[1745577564188,33.97880427,153.15,153.03,1.8699]
[1745577564389,6.5293,153.11,153.08,6.5301]
[1745577565291,33.97880427,153.15,153.08,6.5301]
[1745577565491,33.97880427,153.15,153.09,6.5299]
[1745577565994,6.5293,153.11,153.09,6.5299]
[1745577566190,6.5293,153.11,153.08,6.5302]
[1745577566487,6.5283,153.13,153.08,6.5302]
[1745577566693,33.97880427,153.15,153.08,6.5302]
[1745577567195,6.5293,153.11,153.08,6.5302]
[1745577567495,33.97880427,153.15,153.08,6.5302]
[1745577567993,33.97880427,153.15,153.09,6.5299]
[1745577568489,33.97880427,153.15,153.08,6.53]
[1745577568696,33.97880427,153.15,153.04,8.05880427]
[1745577568993,6.5291,153.12,153.04,8.05880427]
[1745577569195,6.5291,153.12,153.09,6.5298]
[1745577569495,33.97880427,153.15,153.09,6.5298]
[1745577569695,6.5289,153.12,153.09,6.5298]
[1745577569992,33.97880427,153.15,153.09,6.5298]
[1745577570189,1.9448,153.16,153.07,25.92]
[1745577570395,28.59697621,153.18,153.1,8.05880427]
[1745577570595,6.5271,153.16,153.13,6.5279]
[1745577570997,6.5271,153.16,153.1,8.05880427]
[1745577571191,6.5268,153.17,153.1,8.05880427]
[1745577571493,25.92,153.18,153.1,8.05880427]
[1745577571700,6.5273,153.16,153.13,6.5282]
[1745577572000,25.92,153.18,153.1,8.05880427]
[1745577572399,8.05880427,153.17,153.08,8.05880427]
[1745577572592,8.05880427,153.15,153.07,25.92]
[1745577572793,25.92,153.14,153.07,25.92]
[1745577573298,25.92,153.14,153.08,8.05880427]
[1745577573698,25.92,153.17,153.09,1.8897]
[1745577574499,6.5276,153.15,153.09,1.8897]
[1745577574699,25.92,153.17,153.1,8.05880427]
[1745577574898,25.92,153.2,153.12,8.05880427]
[1745577575398,6.5262,153.18,153.15,6.5272]
[1745577575596,25.92,153.2,153.12,8.05880427]
[1745577576001,6.526,153.19,153.12,8.05880427]
[1745577576196,25.92,153.2,153.12,8.05880427]
[1745577576498,6.5263,153.18,153.15,6.5273]
[1745577577500,6.5263,153.18,153.16,6.5269]
[1745577577701,6.5259,153.19,153.16,6.5269]
[1745577578698,6.5262,153.18,153.16,6.5269]
[1745577578900,6.5262,153.18,153.15,6.5272]
[1745577579302,6.5262,153.18,153.12,8.05880427]
[1745577580003,25.92,153.2,153.12,8.05880427]
[1745577580507,6.5264,153.18,153.16,6.5269]
[1745577581304,6.5266,153.17,153.15,6.5272]
[1745577581506,25.92,153.2,153.12,8.05880427]
[1745577582103,6.5259,153.19,153.12,8.05880427]
[1745577583102,25.92,153.2,153.14,6.5275]
[1745577583304,25.92,153.2,153.11,25.92]
[1745577583501,10.7340614,153.19,153.11,25.92]
[1745577583805,8.05880427,153.19,153.13,6.5278]
[1745577584102,6.5272,153.16,153.11,25.92]
[1745577584903,6.5272,153.16,153.13,6.5281]
[1745577585203,8.05880427,153.19,153.13,6.5281]